fUSD/lending_fUSD_20250929
["ID","MTS","AMOUNT","RATE_DAILY","PERIOD"]
[388417620,1759162257216,-1500.0,0.00022068,2]
[388417621,1759162257227,-267.46084216,0.00022068,2]
[388417622,1759162257239,-1012.50745282,0.00022068,2]
[388417623,1759162257250,-923.94596101,0.00022068,2]
[388417624,1759162257261,-1500.0,0.00022068,2]
[388417625,1759162257272,-1500.0,0.00022068,2]
[388417627,1759162257283,-1500.0,0.00022068,2]
[388417628,1759162257294,-1500.0,0.00022068,2]
[388417629,1759162257305,-556.48022573,0.00022068,2]
[388417630,1759162257316,-984.73292133,0.00022068,2]
[388417631,1759162257327,-184.78697126,0.00022068,2]
[388417632,1759162257338,-1500.0,0.00022068,2]
[388417633,1759162257350,-1528.41876253,0.00022068,2]
[388417634,1759162257362,-1500.0,0.00022068,2]
[388417635,1759162257374,-1500.0,0.00022068,2]
[388417637,1759162257390,-350.0,0.00022068,2]
[388417639,1759162257402,-1500.0,0.00022068,2]
[388417640,1759162257413,-1500.0,0.00022068,2]
[388417641,1759162257427,-1500.0,0.00022068,2]
[388417642,1759162257438,-1500.0,0.00022068,2]
[388417643,1759162257451,-1641.41501134,0.00022068,2]
[388417644,1759162257462,-1500.0,0.00022068,2]
[388417645,1759162257473,-1263.81926858,0.00022068,2]
[388417646,1759162257484,-1500.0,0.00022068,2]
[388417647,1759162257495,-1500.0,0.00022068,2]
[388417648,1759162257506,-1500.0,0.00022068,2]
[388417650,1759162257517,-487.14530762,0.000221,2]
[388417652,1759162257528,-600.0,0.0002211,2]
[388417653,1759162257539,-236.7139118,0.0002211,2]
[388417654,1759162257551,-302.1670652,0.00022137,2]
[388417655,1759162257563,-318.95412438,0.00022137,2]
[388417656,1759162257574,-402.88942026,0.00022137,2]
[388417657,1759162257585,-174.99434313,0.0002216,2]
[388417658,1759162257597,-500.0,0.0002216,2]
[388417659,1759162257609,-302.1670652,0.00022219,2]
[388417660,1759162257620,-318.95412438,0.00022219,2]
[388417661,1759162257632,-402.88942026,0.00022219,2]
[388417662,1759162257643,-1626.6,0.00022224,2]
[388417664,1759162257656,-351.92318229,0.00022268,2]
[388417666,1759162257670,-201.44471011,0.00022274,2]
[388417667,1759162257681,-3287.51953041,0.00022279,2]
[388417668,1759162257695,-255.98096543,0.000223,2]
[388417669,1759162257714,-150.0,0.000223,2]
[388417670,1759162257726,-150.0,0.000223,2]
[388417671,1759162257737,-500.0,0.000223,2]
[388417672,1759162257748,-150.0,0.000223,2]
[388417673,1759162257759,-204.16280644,0.000223,2]
[388417674,1759162257770,-152.35426519,0.000223,2]
[388417675,1759162257782,-158.49352166,0.000223,2]
[388417676,1759162257793,-450.0,0.000223,2]
[388417677,1759162257805,-150.0,0.000223,2]
[388417678,1759162257816,-713.0,0.000223,2]
[388417679,1759162257828,-500.0,0.000223,2]
[388417680,1759162257839,-500.0,0.000223,2]
[388417681,1759162257850,-150.0,0.000223,2]
[388417682,1759162257861,-600.0,0.000223,2]
[388417683,1759162257872,-500.0,0.000223,2]
[388417684,1759162257883,-478.0,0.000223,2]
[388417685,1759162257894,-500.0,0.000223,2]
[388417686,1759162257905,-2307.0,0.000223,2]
[388417687,1759162257916,-150.0,0.000223,2]
[388417688,1759162257929,-500.0,0.000223,2]
[388417689,1759162257939,-2195.0,0.000223,2]
[388417690,1759162257951,-150.0,0.000223,2]
[388417692,1759162257961,-274.79476901,0.000223,2]
[388417693,1759162257971,-150.0,0.000223,2]
[388417694,1759162257983,-500.0,0.000223,2]
[388417695,1759162257993,-500.0,0.000223,2]
[388417696,1759162258004,-200.0,0.000223,2]
[388417697,1759162258015,-588.0,0.000223,2]
[388417698,1759162258026,-500.0,0.000223,2]
[388417699,1759162258037,-243.0,0.000223,2]
[388417700,1759162258048,-514.0,0.000223,2]
[388417701,1759162258060,-302.1670652,0.00022301,2]
[388417702,1759162258071,-318.95412438,0.00022301,2]
[388417703,1759162258081,-402.88942026,0.00022301,2]
[388417704,1759162258092,-578.0,0.0002232,2]
[388417705,1759162258103,-302.1670652,0.00022384,2]
[388417706,1759162258114,-318.95412438,0.00022384,2]
[388417707,1759162258125,-402.88942026,0.00022384,2]
[388417708,1759162258136,-152.0,0.00022396,4]
[388417710,1759162258148,-1924.0,0.000224,2]
[388417711,1759162258159,-686.51391609,0.00022428,2]
[388417712,1759162258169,-187.78006525,0.00022466,2]
[388417713,1759162258179,-302.1670652,0.00022493,2]
[388417714,1759162258190,-318.95412438,0.00022493,2]
[388417715,1759162258201,-402.88942026,0.00022493,2]
[388417716,1759162258211,-34952.32223282,0.000225,2]
[388417717,1759162258223,-474.44399431,0.000225,10]
[388417718,1759162258233,-1000.0,0.000225,2]
[388417719,1759162258244,-201.44471011,0.00022521,2]
[388417720,1759162258254,-201.44471012,0.00022521,2]
[388417721,1759162258265,-199.54121667,0.00022521,2]
[388417722,1759162258275,-1000.0,0.0002256,2]
[388417723,1759162258286,-181.35,0.00022561,2]
[388417724,1759162258296,-250.0,0.00022574,2]
[388417725,1759162258307,-150.0,0.00022574,2]
[388417726,1759162258318,-500.0,0.00022574,2]
[388417728,1759162258329,-168.75189934,0.00022574,2]
[388417730,1759162258339,-150.0,0.00022574,2]
[388417731,1759162258350,-713.0,0.00022574,2]
[388417732,1759162258360,-150.0,0.00022574,2]
[388417733,1759162258371,-500.0,0.00022574,2]
[388417734,1759162258385,-150.0,0.00022574,2]
[388417735,1759162258396,-478.0,0.00022574,2]
[388417736,1759162258407,-500.0,0.00022574,2]
[388417737,1759162258417,-2307.0,0.00022574,2]
[388417738,1759162258431,-150.0,0.00022574,2]
[388417740,1759162258442,-500.0,0.00022574,2]
[388417742,1759162258453,-2195.0,0.00022574,2]
[388417743,1759162258465,-150.0,0.00022574,2]
[388417744,1759162258477,-150.0,0.00022574,2]
[388417745,1759162258487,-500.0,0.00022574,2]
[388417746,1759162258497,-500.0,0.00022574,2]
[388417747,1759162258509,-588.0,0.00022574,2]
[388417748,1759162258520,-500.0,0.00022574,2]
[388417749,1759162258532,-302.1670652,0.00022575,2]
[388417750,1759162258543,-318.95412438,0.00022575,2]
[388417751,1759162258554,-402.88942026,0.00022575,2]
[388417753,1759162258565,-200.0,0.00022591,2]
[388417755,1759162258575,-1000.0,0.000226,2]
[388417756,1759162258585,-1716.35305889,0.00022616,2]
[388417757,1759162258596,-2000.0,0.00022616,2]
[388417758,1759162258607,-2000.0,0.00022616,2]
[388417759,1759162258617,-695.00189329,0.00022616,2]
[388417760,1759162258628,-2000.0,0.00022616,2]
[388417761,1759162258638,-254.95584902,0.00022616,2]
[388417762,1759162258649,-1749.7305582,0.00022616,2]
[388417763,1759162258659,-2000.0,0.00022616,2]
[388417764,1759162258670,-289.87293578,0.00022616,2]
[388417766,1759162258680,-2000.0,0.00022616,2]
[388417768,1759162258690,-1208.88693415,0.00022616,2]
[388417769,1759162258701,-1328.83905667,0.00022616,2]
[388417770,1759162258713,-1505.84643545,0.00022616,2]
[388417771,1759162258723,-368.76188433,0.00022616,2]
[388417772,1759162258734,-2000.0,0.00022616,2]
[388417773,1759162258744,-2000.0,0.00022616,2]
[388417774,1759162258755,-2000.0,0.00022616,2]
[388417775,1759162258766,-2000.0,0.00022616,2]
[388417776,1759162258777,-2000.0,0.00022616,2]
[388417777,1759162258789,-2000.0,0.00022616,2]
[388417778,1759162258800,-2000.0,0.00022616,2]
[388417788,1759162259361,-2000.0,0.00022616,2]
[388417789,1759162259372,-302.1670652,0.00022658,2]
[388417790,1759162259386,-318.95412438,0.00022658,2]
[388417791,1759162259397,-402.88942026,0.00022658,2]
[388417793,1759162259407,-600.0,0.00022658,2]
[388417795,1759162259419,-3292.0,0.00022663,2]
[388417796,1759162259429,-173.52271755,0.00022682,22]
[388417797,1759162259439,-356.61069493,0.00022692,2]
[388417798,1759162259450,-1000.0,0.000227,2]
[388417799,1759162259462,-169.1,0.000227,7]
[388417800,1759162259472,-515.13918906,0.0002271,2]
[388417801,1759162259482,-302.1670652,0.0002274,2]
[388417802,1759162259492,-318.95412438,0.0002274,2]
[388417803,1759162259503,-402.88942026,0.0002274,2]
[388417804,1759162259513,-500.0,0.0002277,2]
[388417805,1759162259523,-1000.0,0.0002277,2]
[388417806,1759162259533,-1041.35590643,0.00022774,2]
[388417807,1759162259544,-1484.11013941,0.00022799,10]
[388417808,1759162259554,-500.0,0.000228,2]
[388417809,1759162259565,-1000.0,0.000228,2]
[388417810,1759162259575,-281.9018861,0.00022848,2]
[388417811,1759162259585,-437.08316766,0.00022848,2]
[388417812,1759162259595,-250.0,0.00022848,2]
[388417813,1759162259605,-713.0,0.00022848,2]
[388417814,1759162259615,-500.0,0.00022848,2]
[388417815,1759162259625,-229.3077762,0.00022848,2]
[388417816,1759162259635,-478.0,0.00022848,2]
[388417817,1759162259645,-500.0,0.00022848,2]
[388417818,1759162259656,-2307.0,0.00022848,2]
[388417819,1759162259666,-150.0,0.00022848,2]
[388417820,1759162259677,-500.0,0.00022848,2]
[388417821,1759162259687,-2195.0,0.00022848,2]
[388417822,1759162259697,-214.50320107,0.00022848,2]
[388417823,1759162259707,-150.0,0.00022848,2]
[388417824,1759162259718,-500.0,0.00022848,2]
[388417825,1759162259727,-500.0,0.00022848,2]
[388417826,1759162259739,-588.0,0.00022848,2]
[388417827,1759162259749,-500.0,0.00022848,2]
[388417828,1759162259759,-302.1670652,0.00022849,2]
[388417829,1759162259770,-318.95412438,0.00022849,2]
[388417830,1759162259783,-402.88942026,0.00022849,2]
[388417831,1759162259794,-38896.72,0.000229,2]
[388417832,1759162259805,-200.0,0.0002291,2]
[388417833,1759162259815,-302.1670652,0.00022932,2]
[388417834,1759162259824,-318.95412438,0.00022932,2]
[388417835,1759162259835,-402.88942026,0.00022932,2]
[388417836,1759162259846,-5895.98575466,0.00022983,2]
[388417837,1759162259857,-700.0,0.00022987,2]
[388417838,1759162259868,-10000.0,0.00022989,8]
[388417839,1759162259879,-200.0,0.00022998,2]
[388417840,1759162259891,-200.0,0.00022998,2]
[388417841,1759162259902,-200.0,0.00022998,2]
[388417842,1759162259912,-200.0,0.00022998,2]
[388417843,1759162259921,-200.0,0.00022998,2]
[388417844,1759162259933,-800.0,0.00022998,13]
[388417845,1759162259943,-800.0,0.00022998,13]
[388417846,1759162259953,-800.0,0.00022998,13]
[388417847,1759162259963,-800.0,0.00022998,13]
[388417849,1759162259972,-800.0,0.00022998,13]
[388417850,1759162259982,-200.0,0.00022998,2]
[388417851,1759162259991,-200.0,0.00022998,2]
[388417852,1759162260001,-200.0,0.00022998,2]
[388417853,1759162260011,-200.0,0.00022998,2]
[388417854,1759162260020,-200.0,0.00022998,2]
[388417855,1759162260033,-800.0,0.00022998,13]
[388417856,1759162260043,-231.0,0.00022998,2]
[388417857,1759162260054,-800.0,0.00022998,13]
[388417858,1759162260066,-800.0,0.00022998,13]
[388417859,1759162260078,-800.0,0.00022998,13]
[388417860,1759162260090,-800.0,0.00022998,13]
[388417862,1759162260100,-800.0,0.00022998,13]
[388417863,1759162260110,-800.0,0.00022998,13]
[388417864,1759162260120,-800.0,0.00022998,13]
[388417865,1759162260130,-800.0,0.00022998,13]
[388417866,1759162260140,-819.0,0.00022998,13]
[388417867,1759162260150,-800.0,0.00022998,13]
[388417868,1759162260160,-800.0,0.00022998,13]
[388417869,1759162260170,-800.0,0.00022998,13]
[388417870,1759162260180,-200.0,0.00022998,2]
[388417871,1759162260191,-200.0,0.00022998,2]
[388417872,1759162260201,-200.0,0.00022998,2]
[388417873,1759162260212,-200.0,0.00022998,2]
[388417874,1759162260221,-200.0,0.00022998,2]
[388417876,1759162260231,-200.0,0.00022998,2]
[388417877,1759162260241,-200.0,0.00022998,2]
[388417878,1759162260251,-800.0,0.00022998,13]
[388417879,1759162260262,-800.0,0.00022998,13]
[388417880,1759162260273,-800.0,0.00022998,13]
[388417881,1759162260287,-800.0,0.00022998,13]
[388417882,1759162260296,-6000.0,0.00023,3]
[388417883,1759162260307,-2624.0,0.00023,2]
[388417884,1759162260317,-500.0,0.00023,4]
[388417885,1759162260327,-500.0,0.00023,7]
[388417886,1759162260337,-433.13247522,0.00023,2]
[388417888,1759162260348,-992.21046794,0.00023,2]
[388417889,1759162260358,-11208.39555213,0.00023,2]
[388417890,1759162260369,-1000.0,0.00023,5]
[388417891,1759162260382,-3394.49461952,0.00023,3]
[388417892,1759162260393,-1800.0,0.00023,3]
[388417893,1759162260404,-953.69820877,0.00023,2]
[388417894,1759162260415,-1801.82256751,0.00023,2]
[388417895,1759162260426,-4636.58,0.00023,7]
[388417896,1759162260438,-201387.73,0.00023,7]
[388417897,1759162260449,-160.78,0.00023,2]
[388417898,1759162260462,-180.0,0.00023,2]
[388417899,1759162260472,-4000.0,0.00023,4]
[388417901,1759162260483,-267.46074303,0.00023007,2]
[388417902,1759162260493,-160.0,0.00023007,2]
[388417903,1759162260505,-359.76179104,0.00023007,2]
[388417904,1759162260515,-302.1670652,0.00023014,2]
[388417905,1759162260525,-318.95412438,0.00023014,2]
[388417906,1759162260538,-402.88942026,0.00023014,2]
[388417907,1759162260548,-500.0,0.00023014,7]
[388417908,1759162260558,-194.72792766,0.00023014,2]
[388417909,1759162260568,-500.0,0.00023019,7]
[388417910,1759162260578,-500.0,0.00023024,7]
[388417911,1759162260588,-500.0,0.0002303,7]
[388417912,1759162260599,-500.0,0.00023035,7]
[388417914,1759162260608,-500.0,0.0002304,7]
[388417915,1759162260619,-500.0,0.00023046,7]
[388417916,1759162260628,-500.0,0.00023051,7]
[388417917,1759162260639,-500.0,0.00023056,7]
[388417918,1759162260649,-500.0,0.00023061,7]
[388417919,1759162260659,-500.0,0.00023067,7]
[388417920,1759162260669,-500.0,0.00023072,7]
[388417921,1759162260679,-500.0,0.00023077,7]
[388417922,1759162260689,-500.0,0.00023083,7]
[388417923,1759162260699,-500.0,0.00023088,7]
[388417924,1759162260710,-500.0,0.00023093,7]
[388417926,1759162260720,-500.0,0.00023099,7]
[388417927,1759162260730,-200.0,0.000231,2]
[388417928,1759162260740,-2546.3516236,0.000231,2]
[388417929,1759162260750,-500.0,0.00023104,7]
[388417930,1759162260759,-500.0,0.00023109,7]
[388417931,1759162260769,-500.0,0.00023114,7]
[388417932,1759162260779,-500.0,0.0002312,7]
[388417933,1759162260789,-713.0,0.00023122,2]
[388417934,1759162260799,-500.0,0.00023122,2]
[388417935,1759162260809,-478.0,0.00023122,2]
[388417936,1759162260819,-500.0,0.00023122,2]
[388417938,1759162260828,-2307.0,0.00023122,2]
[388417939,1759162260838,-197.80120988,0.00023122,2]
[388417940,1759162260849,-500.0,0.00023122,2]
[388417941,1759162260860,-2195.0,0.00023122,2]
[388417942,1759162260870,-250.0,0.00023122,2]
[388417943,1759162260880,-500.0,0.00023122,2]
[388417944,1759162260891,-500.0,0.00023122,2]
[388417945,1759162260901,-588.0,0.00023122,2]
[388417946,1759162260911,-500.0,0.00023122,2]
[388417947,1759162260922,-500.0,0.00023125,7]
[388417948,1759162260932,-500.0,0.0002313,7]
[388417949,1759162260942,-500.0,0.00023136,7]
[388417951,1759162260952,-500.0,0.00023141,7]
[388417952,1759162260962,-500.0,0.00023146,7]
[388417953,1759162260971,-491.89265,0.00023147,2]
[388417954,1759162260981,-500.0,0.00023152,7]
[388417955,1759162260991,-28374.71829233,0.00023156,2]
[388417956,1759162261000,-500.0,0.00023157,7]
[388417957,1759162261011,-500.0,0.00023162,7]
[388417958,1759162261021,-2500.0,0.00023164,2]
[388417959,1759162261032,-2500.0,0.00023164,2]
[388417960,1759162261042,-2645.53588865,0.00023164,2]
[388417961,1759162261052,-2000.0,0.00023164,2]
[388417962,1759162261063,-2500.0,0.00023164,2]
[388417964,1759162261072,-2500.0,0.00023164,2]
[388417965,1759162261082,-2500.0,0.00023164,2]
[388417966,1759162261093,-2500.0,0.00023164,2]
[388417967,1759162261103,-2500.0,0.00023164,2]
[388417968,1759162261113,-1806.72579361,0.00023164,2]
[388417969,1759162261123,-1224.87832926,0.00023164,2]
[388417970,1759162261132,-2500.0,0.00023164,2]
[388417971,1759162261142,-2500.0,0.00023164,2]
[388417972,1759162261153,-500.0,0.00023167,7]
[388417973,1759162261163,-500.0,0.00023173,7]
[388417974,1759162261172,-500.0,0.00023178,7]
[388417975,1759162261183,-500.0,0.00023183,7]
[388417977,1759162261193,-500.0,0.00023189,7]
[388417978,1759162261203,-500.0,0.00023194,7]
[388417979,1759162261214,-500.0,0.00023199,7]
[388417980,1759162261230,-51371.03629303,0.000232,2]
[388417981,1759162261242,-953.69820877,0.000232,2]
[388417982,1759162261257,-1801.82256751,0.000232,2]
[388417983,1759162261267,-500.0,0.00023205,7]
[388417984,1759162261277,-600.0,0.00023206,2]
[388417985,1759162261288,-500.0,0.0002321,7]
[388417986,1759162261299,-500.0,0.00023215,7]
[388417988,1759162261314,-500.0,0.00023221,7]
[388417989,1759162261324,-500.0,0.00023226,7]
[388417990,1759162261334,-350.8,0.0002323,2]
[388417991,1759162261344,-544.93,0.0002323,2]
[388417992,1759162261353,-350.88,0.0002323,2]
[388417993,1759162261365,-1196.09,0.0002323,2]
[388417994,1759162261375,-175.48,0.0002323,2]
[388417995,1759162261390,-1100.51,0.0002323,2]
[388417996,1759162261400,-824.42,0.0002323,2]
[388417997,1759162261410,-1196.09,0.0002323,2]
[388417998,1759162261420,-500.0,0.00023231,7]
[388417999,1759162261432,-500.0,0.00023236,7]
[388418000,1759162261443,-500.0,0.00023242,7]
[388418001,1759162261454,-500.0,0.00023247,7]
[388418002,1759162261466,-500.0,0.00023252,7]
[388418003,1759162261476,-500.0,0.00023258,7]
[388418004,1759162261486,-500.0,0.00023263,7]
[388418005,1759162261496,-500.0,0.00023268,7]
[388418006,1759162261506,-500.0,0.00023274,7]
[388418007,1759162261516,-500.0,0.00023279,7]
[388418008,1759162261526,-500.0,0.00023284,7]
[388418009,1759162261538,-151.0,0.00023288,7]
[388418010,1759162261548,-151.0,0.00023288,7]
[388418011,1759162261558,-150.0,0.00023288,2]
[388418012,1759162261568,-500.0,0.00023289,7]
[388418013,1759162261578,-500.0,0.00023295,7]
[388418014,1759162261588,-500.0,0.000233,7]
[388418015,1759162261599,-164.17,0.00023303,2]
[388418016,1759162261609,-500.0,0.00023305,7]
[388418017,1759162261619,-500.0,0.00023311,7]
[388418018,1759162261629,-500.0,0.00023316,7]
[388418020,1759162261638,-500.0,0.00023321,7]
[388418021,1759162261648,-500.0,0.00023327,7]
[388418022,1759162261658,-500.0,0.00023332,7]
[388418023,1759162261668,-6604.43349402,0.00023333,7]
[388418024,1759162261678,-500.0,0.00023337,7]
[388418025,1759162261687,-500.0,0.00023342,7]
[388418026,1759162261698,-1000.0,0.00023347,2]
[388418027,1759162261708,-500.0,0.00023348,7]
[388418028,1759162261718,-500.0,0.00023353,7]
[388418029,1759162261728,-500.0,0.00023358,7]
[388418030,1759162261737,-500.0,0.00023364,7]
[388418032,1759162261747,-500.0,0.00023369,7]
[388418033,1759162261756,-500.0,0.00023374,7]
[388418034,1759162261766,-500.0,0.0002338,7]
[388418035,1759162261776,-500.0,0.00023385,7]
[388418036,1759162261786,-500.0,0.0002339,7]
[388418037,1759162261796,-500.0,0.00023395,7]
[388418039,1759162261962,-713.0,0.00023396,2]
[388418041,1759162261972,-500.0,0.00023396,2]
[388418042,1759162261982,-478.0,0.00023396,2]
[388418043,1759162261991,-500.0,0.00023396,2]
[388418044,1759162262001,-2307.0,0.00023396,2]
[388418045,1759162262011,-500.0,0.00023396,2]
[388418046,1759162262021,-2195.0,0.00023396,2]
[388418047,1759162262031,-500.0,0.00023396,2]
[388418048,1759162262040,-500.0,0.00023396,2]
[388418049,1759162262051,-588.0,0.00023396,2]
[388418050,1759162262061,-500.0,0.00023396,2]
[388418051,1759162262071,-1402.66992447,0.000234,7]
[388418052,1759162262081,-500.0,0.00023401,7]
[388418054,1759162262091,-500.0,0.00023406,7]
[388418055,1759162262100,-500.0,0.00023411,7]
[388418056,1759162262109,-500.0,0.00023417,7]
[388418057,1759162262119,-500.0,0.00023422,7]
[388418058,1759162262128,-500.0,0.00023427,7]
[388418059,1759162262137,-500.0,0.00023433,7]
[388418060,1759162262147,-500.0,0.00023438,7]
[388418061,1759162262157,-500.0,0.00023443,7]
[388418062,1759162262166,-500.0,0.00023449,7]
[388418063,1759162262176,-500.0,0.00023454,7]
[388418064,1759162262185,-500.0,0.00023459,7]
[388418065,1759162262194,-500.0,0.00023464,7]
[388418067,1759162262203,-1113.62,0.00023468,2]
[388418068,1759162262213,-500.0,0.0002347,7]
[388418069,1759162262224,-500.0,0.00023475,7]
[388418070,1759162262234,-800.0,0.00023476,13]
[388418071,1759162262243,-800.0,0.00023476,13]
[388418072,1759162262253,-800.0,0.00023476,13]
[388418073,1759162262262,-800.0,0.00023476,13]
[388418074,1759162262271,-800.0,0.00023476,13]
[388418075,1759162262281,-800.0,0.00023476,13]
[388418076,1759162262291,-800.0,0.00023476,13]
[388418077,1759162262301,-800.0,0.00023476,13]
[388418078,1759162262310,-800.0,0.00023476,13]
[388418080,1759162262319,-800.0,0.00023476,13]
[388418081,1759162262328,-800.0,0.00023476,13]
[388418082,1759162262338,-800.0,0.00023476,13]
[388418083,1759162262347,-200.0,0.00023476,2]
[388418084,1759162262356,-200.0,0.00023476,2]
[388418085,1759162262366,-200.0,0.00023476,2]
[388418086,1759162262375,-200.0,0.00023476,2]
[388418087,1759162262389,-200.0,0.00023476,2]
[388418088,1759162262399,-800.0,0.00023476,13]
[388418089,1759162262409,-200.0,0.00023476,2]
[388418090,1759162262419,-800.0,0.00023476,13]
[388418091,1759162262431,-800.0,0.00023476,13]
[388418093,1759162262440,-800.0,0.00023476,13]
[388418094,1759162262449,-200.0,0.00023476,2]
[388418095,1759162262460,-200.0,0.00023476,2]
[388418096,1759162262469,-200.0,0.00023476,2]
[388418097,1759162262479,-200.0,0.00023476,2]
[388418098,1759162262488,-800.0,0.00023476,13]
[388418099,1759162262498,-800.0,0.00023476,13]
[388418100,1759162262508,-800.0,0.00023476,13]
[388418101,1759162262517,-800.0,0.00023476,13]
[388418102,1759162262527,-800.0,0.00023476,13]
[388418103,1759162262539,-800.0,0.00023476,13]
[388418104,1759162262548,-800.0,0.00023476,13]
[388418106,1759162262558,-800.0,0.00023476,13]
[388418107,1759162262568,-800.0,0.00023476,13]
[388418108,1759162262578,-800.0,0.00023476,13]
[388418109,1759162262588,-800.0,0.00023476,13]
[388418110,1759162262598,-800.0,0.00023476,13]
[388418111,1759162262607,-800.0,0.00023476,13]
[388418112,1759162262617,-800.0,0.00023476,13]
[388418113,1759162262627,-800.0,0.00023476,13]
[388418114,1759162262637,-800.0,0.00023476,13]
[388418115,1759162262646,-800.0,0.00023476,13]
[388418116,1759162262655,-800.0,0.00023476,13]
[388418117,1759162262665,-800.0,0.00023476,13]
[388418118,1759162262675,-800.0,0.00023476,13]
[388418119,1759162262684,-200.0,0.00023476,2]
[388418120,1759162262693,-200.0,0.00023476,2]
[388418121,1759162262702,-200.0,0.00023476,2]
[388418122,1759162262711,-200.0,0.00023476,2]
[388418123,1759162262721,-200.0,0.00023476,2]
[388418124,1759162262730,-800.0,0.00023476,13]
[388418125,1759162262740,-800.0,0.00023476,13]
[388418126,1759162262750,-800.0,0.00023476,13]
[388418127,1759162262760,-800.0,0.00023476,13]
[388418128,1759162262770,-800.0,0.00023476,13]
[388418129,1759162262780,-800.0,0.00023476,13]
[388418130,1759162262791,-200.0,0.00023476,2]
[388418131,1759162262800,-200.0,0.00023476,2]
[388418132,1759162262811,-200.0,0.00023476,2]
[388418133,1759162262820,-800.0,0.00023476,13]
[388418134,1759162262830,-800.0,0.00023476,13]
[388418135,1759162262840,-800.0,0.00023476,13]
[388418136,1759162262850,-800.0,0.00023476,13]
[388418137,1759162262860,-800.0,0.00023476,13]
[388418138,1759162262870,-800.0,0.00023476,13]
[388418139,1759162262880,-151.0,0.00023476,7]
[388418140,1759162262891,-151.0,0.00023476,7]
[388418141,1759162262901,-183.415345,0.00023476,7]
[388418142,1759162262913,-151.0,0.00023476,7]
[388418143,1759162262923,-183.415345,0.00023476,7]
[388418144,1759162262934,-183.415345,0.00023476,7]
[388418145,1759162262944,-183.415345,0.00023476,7]
[388418146,1759162262954,-155.474325,0.00023476,7]
[388418147,1759162262964,-1664.126647,0.00023476,7]
[388418148,1759162262974,-155.474325,0.00023476,7]
[388418149,1759162262984,-1664.126647,0.00023476,7]
[388418150,1759162262995,-155.474325,0.00023476,7]
[388418151,1759162263012,-155.474325,0.00023476,7]
[388418152,1759162263032,-1664.126647,0.00023476,7]
[388418154,1759162263053,-2552.287152,0.00023476,7]
[388418155,1759162263075,-1664.126647,0.00023476,7]
[388418156,1759162263096,-151.0,0.00023476,7]
[388418157,1759162263117,-151.0,0.00023476,7]
[388418158,1759162263138,-151.0,0.00023476,7]
[388418159,1759162263160,-7154.158261,0.00023476,7]
[388418160,1759162263176,-151.0,0.00023476,7]
[388418162,1759162263186,-7154.158261,0.00023476,7]
[388418163,1759162263196,-151.0,0.00023476,7]
[388418164,1759162263205,-7154.158261,0.00023476,7]
[388418165,1759162263215,-7154.158261,0.00023476,7]
[388418166,1759162263225,-151.0,0.00023476,7]
[388418167,1759162263235,-151.0,0.00023476,7]
[388418168,1759162263245,-501.022181,0.00023476,2]
[388418169,1759162263255,-501.022181,0.00023476,2]
[388418170,1759162263265,-501.022181,0.00023476,2]